bitfinex-derivatives/quotes_SOLF0:USTF0_20250709
["timestamp","ask_amount","ask_price","bid_price","bid_amount"]
[1752035574040,6.6313,150.78,150.75,6.6325]
[1752035574447,6.6313,150.78,150.75,6.67955208]
[1752035574643,6.6313,150.78,150.76,6.632]
[1752035575647,9.10754789,150.79,150.76,6.632]
[1752035575944,6.6309,150.79,150.76,9.10864789]
[1752035577748,6.6309,150.79,150.76,6.632]
[1752035577949,6.6309,150.79,150.76,9.10864789]
[1752035582547,6.6309,150.79,150.75,6.67935208]
[1752035582548,9.10754789,150.79,150.75,6.67935208]
[1752035582751,9.10754789,150.79,150.75,9.15599997]
[1752035583047,2.47664789,150.77,150.75,0.04705208]
[1752035583952,9.10854789,150.77,150.75,0.04705208]
[1752035584153,2.47664789,150.77,150.75,0.04705208]
[1752035585449,2.2318,150.81,150.75,0.04705208]
[1752035585752,6.6318,150.77,150.75,0.04705208]
[1752035586355,9.10794789,150.78,150.75,6.67945208]
[1752035586856,2.47664789,150.79,150.75,2.52369997]
[1752035587051,9.10754789,150.79,150.76,6.6317]
[1752035587256,6.6309,150.79,150.76,6.6317]
[1752035587951,9.10754789,150.79,150.76,6.6317]
[1752035588856,2.47664789,150.79,150.77,6.6315]
[1752035589357,2.47627629,150.79,150.77,6.6315]
[1752035590159,2.47627629,150.79,150.76,6.6318]
[1752035592960,9.10707629,150.79,150.76,6.6318]
[1752035593762,6.6308,150.79,150.76,6.6318]
[1752035593962,9.10707629,150.79,150.76,6.6318]
[1752035595661,9.10707629,150.79,150.77,6.6316]
[1752035597563,6.6308,150.79,150.77,6.6316]
[1752035597861,9.10707629,150.79,150.77,6.6316]
[1752035598161,9.10707629,150.79,150.76,6.6319]
[1752035598462,6.6305,150.8,150.75,2.52332837]
[1752035598762,2.47627629,150.79,150.76,6.632]
[1752035600464,6.6305,150.8,150.77,6.6315]
[1752035600663,9.10677629,150.8,150.77,6.6315]
[1752035601465,2.47627629,150.8,150.77,6.6315]
[1752035602462,9.10667629,150.8,150.77,6.6315]
[1752035606265,9.2289637,150.85,150.75,0.04705208]
[1752035606464,8.02898538,150.84,150.78,2.47627629]
[1752035606665,13.8294637,150.87,150.78,2.47627629]
[1752035606666,2.47627629,150.82,150.78,2.47627629]
[1752035606969,2.47627629,150.82,150.79,6.68100166]
[1752035607372,2.47627629,150.81,150.79,0.05060166]
[1752035608878,2.47627629,150.81,150.79,6.68130166]
[1752035609078,6.6298,150.82,150.79,6.68130166]
[1752035609277,2.47627629,150.81,150.79,6.68130166]
[1752035610074,6.6294,150.83,150.79,0.05060166]
[1752035610279,2.47627629,150.81,150.79,0.05060166]
[1752035610976,2.47627629,150.81,150.8,6.6303]
[1752035611278,2.47627629,150.82,150.8,6.6303]
[1752035615474,2.47627629,150.81,150.79,6.68120166]
[1752035617379,6.6297,150.82,150.79,6.68120166]
[1752035617380,9.10597629,150.82,150.79,6.68120166]
[1752035622087,2.47627629,150.82,150.8,6.63]
[1752035622580,9.10537629,150.83,150.8,6.63]
[1752035623082,4.6005,150.87,150.81,6.6296]
[1752035623283,2.47627629,150.85,150.81,2.47627629]
[1752035623587,8.03289884,150.84,150.81,2.47627629]
[1752035623788,8.03289884,150.83,150.81,2.47627629]
[1752035624082,2.47627629,150.85,150.81,2.47627629]
[1752035624283,8.03232749,150.84,150.81,2.47627629]
[1752035624483,8.03232749,150.83,150.81,2.47627629]
[1752035624684,9.10477629,150.84,150.81,6.6296]
[1752035624888,8.03155649,150.83,150.8,2.47627629]
[1752035625183,2.47627629,150.84,150.8,2.47627629]
[1752035625489,8.03122589,150.83,150.81,6.6295]
[1752035625787,9.10507629,150.84,150.81,6.6295]
[1752035626086,8.03122589,150.83,150.81,6.6295]
[1752035626285,9.10507629,150.84,150.81,6.6295]
[1752035626485,8.03093809,150.83,150.81,6.6295]
[1752035626686,6.6288,150.84,150.81,6.6295]
[1752035626983,9.10507629,150.84,150.81,6.6295]
[1752035627789,8.03165274,150.83,150.81,6.6295]
[1752035627989,9.10507629,150.84,150.81,6.6295]
[1752035628190,8.03165274,150.83,150.81,6.6295]
[1752035628393,9.10507629,150.84,150.81,6.6295]
[1752035628591,8.03201275,150.83,150.81,6.6295]
[1752035628792,9.10507629,150.84,150.81,6.6295]
[1752035628992,8.03201275,150.83,150.81,6.6295]
[1752035629187,9.10507629,150.84,150.81,6.6295]
[1752035629383,8.03253122,150.83,150.81,6.6295]
[1752035629592,9.10507629,150.84,150.81,6.6295]
[1752035629794,8.03253122,150.83,150.81,6.6295]
[1752035629992,9.10507629,150.84,150.81,6.6295]
[1752035630187,8.05985645,150.83,150.81,6.6295]
[1752035630487,9.10507629,150.84,150.81,6.6295]
[1752035630688,8.06046065,150.83,150.81,6.6295]
[1752035630992,9.10507629,150.84,150.81,6.6295]
[1752035631293,8.06046065,150.83,150.81,6.6295]
[1752035631488,9.10507629,150.84,150.81,6.6295]
[1752035631682,8.06125836,150.83,150.81,6.6295]
[1752035631886,9.10507629,150.84,150.81,6.6295]
[1752035632086,8.06125836,150.83,150.81,6.6295]
[1752035632381,9.10507629,150.84,150.81,6.6295]
[1752035632582,8.0609835,150.83,150.81,6.6295]
[1752035632787,9.10507629,150.84,150.81,6.6295]
[1752035632990,8.06095937,150.83,150.81,6.6295]
[1752035633291,9.10507629,150.84,150.81,6.6295]
[1752035633489,8.06083762,150.83,150.81,6.6295]
[1752035633691,9.10507629,150.84,150.81,6.6295]
[1752035633888,8.06994951,150.83,150.81,6.6295]
[1752035634186,9.10507629,150.84,150.81,6.6295]
[1752035634382,8.06989357,150.83,150.81,6.6295]
[1752035634587,9.10507629,150.84,150.81,6.6295]
[1752035634781,8.06986926,150.83,150.81,6.6295]
[1752035634985,9.10507629,150.84,150.81,6.6295]
[1752035635183,14.69886926,150.83,150.81,6.6295]
[1752035635386,6.629,150.83,150.81,6.6295]
[1752035636091,6.629,150.83,150.8,9.10637629]
[1752035637595,9.10517629,150.84,150.81,6.6298]
[1752035637786,2.47627629,150.82,150.79,2.52687795]
[1752035638186,2.47627629,150.82,150.79,0.05060166]
[1752035638794,2.47627629,150.82,150.79,2.52687795]
[1752035639593,6.6301,150.81,150.79,2.52687795]
[1752035639795,2.47627629,150.82,150.79,2.52687795]
[1752035640596,9.10587629,150.82,150.79,9.15747795]
[1752035641694,6.6296,150.82,150.79,9.15747795]
[1752035643098,13.8294637,150.87,150.8,9.10647629]
[1752035643299,2.47627629,150.84,150.8,9.10647629]
[1752035643598,8.07545404,150.83,150.8,2.47627629]
[1752035643801,6.6293,150.83,150.8,9.10637629]
[1752035645099,6.6293,150.83,150.81,6.6298]
[1752035645300,9.10497629,150.84,150.81,6.6298]
[1752035645494,8.05890389,150.83,150.81,6.6298]
[1752035645697,9.10497629,150.84,150.81,6.6298]
[1752035645999,8.05890389,150.83,150.81,6.6298]
[1752035646202,6.629,150.83,150.81,6.6298]
[1752035647306,9.10497629,150.84,150.81,6.6298]
[1752035647500,8.05998916,150.83,150.81,6.6298]
[1752035647700,2.47627629,150.84,150.8,9.10637629]
[1752035647999,8.05999738,150.83,150.8,9.10637629]
[1752035648201,2.47627629,150.84,150.8,6.6301]
[1752035648494,8.06088007,150.83,150.8,6.6301]
[1752035648700,6.629,150.83,150.8,6.6301]
[1752035649303,8.07101823,150.82,150.8,6.6301]
[1752035649500,6.629,150.83,150.8,9.10637629]
[1752035649699,8.07101,150.82,150.8,9.10637629]
[1752035649896,6.629,150.83,150.8,6.6301]
[1752035651203,8.07376465,150.82,150.8,6.6301]
[1752035651404,6.629,150.83,150.8,6.6301]
[1752035651606,8.07376465,150.82,150.8,6.6301]
[1752035651904,6.629,150.83,150.8,6.6301]
[1752035652202,8.07408668,150.82,150.8,6.6301]
[1752035652402,6.629,150.83,150.8,6.6301]
[1752035652705,6.6288,150.84,150.81,6.6298]
[1752035653003,8.07528805,150.83,150.81,6.6298]
[1752035653201,9.10324462,150.85,150.82,6.6294]
[1752035653404,8.07447491,150.84,150.82,6.6294]
[1752035653604,9.10324462,150.85,150.82,6.6294]
[1752035653902,8.07405926,150.84,150.82,6.6294]
[1752035654103,6.6279,150.86,150.81,2.47451194]
[1752035654306,8.07483203,150.85,150.82,2.47451194]
[1752035654505,2.47451194,150.86,150.82,2.47451194]
[1752035654806,8.07349686,150.85,150.82,2.47451194]
[1752035655007,9.10261194,150.86,150.83,6.6289]
[1752035655307,8.07349686,150.85,150.83,6.6289]
[1752035655508,9.10261194,150.86,150.83,6.6289]
[1752035655811,8.07239358,150.85,150.83,6.67071287]
[1752035656106,2.47451194,150.86,150.83,6.67071287]
[1752035656306,8.07239359,150.85,150.83,6.67071287]
[1752035656507,9.10251194,150.86,150.83,6.67071287]
[1752035656703,17.17423782,150.85,150.83,0.04181287]
[1752035656904,10.54514759,150.84,150.83,0.04181287]
[1752035657605,8.07063565,150.84,150.83,0.04181287]
[1752035657806,2.47451194,150.85,150.83,0.04181287]
[1752035658808,6.6279,150.86,150.83,6.67071287]
[1752035659009,9.10241194,150.86,150.83,6.67071287]
[1752035659507,6.6279,150.86,150.83,9.14522481]
[1752035662508,6.6279,150.86,150.83,6.67071287]
[1752035662704,6.6279,150.86,150.83,9.14522481]
[1752035663003,6.6279,150.86,150.83,6.67071287]
[1752035663199,6.6279,150.86,150.83,9.14522481]
[1752035665608,9.10241194,150.86,150.83,9.14522481]
[1752035665905,6.6281,150.85,150.83,0.04181287]
[1752035668009,6.6279,150.86,150.83,9.14522481]
[1752035668202,9.10241194,150.86,150.83,9.14522481]
[1752035668612,9.10241194,150.86,150.83,6.67071287]
[1752035671914,2.47451194,150.85,150.83,0.04181287]
[1752035673513,9.10281194,150.85,150.83,0.04181287]
[1752035674616,6.6283,150.85,150.83,0.04181287]
[1752035674913,9.10281194,150.85,150.83,0.04181287]
[1752035676319,2.47451194,150.85,150.83,6.67071287]
[1752035677418,2.47451194,150.85,150.83,0.04181287]
[1752035678720,9.10261194,150.85,150.83,0.04181287]
[1752035681011,6.6285,150.84,150.83,0.04181287]
[1752035681318,2.47451194,150.85,150.83,0.04181287]
[1752035682621,6.6283,150.85,150.83,0.04181287]
[1752035682822,9.10281194,150.85,150.83,0.04181287]
[1752035686322,6.6283,150.85,150.83,0.04181287]
[1752035689825,6.6285,150.84,150.83,0.04181287]
[1752035690025,2.47451194,150.84,150.76,20.92332558]
[1752035690225,2.47451194,150.83,150.79,2.47451194]
[1752035690425,2.47451194,150.82,150.79,9.10521194]
[1752035691724,2.47451194,150.82,150.79,2.47451194]
[1752035692722,2.47451194,150.82,150.76,2.3744]
[1752035692922,2.47451194,150.82,150.79,2.47451194]
[1752035694026,2.47451194,150.82,150.79,9.10491194]
[1752035694825,2.47451194,150.82,150.79,6.6304]
[1752035695222,2.47451194,150.82,150.79,9.10491194]
[1752035698526,9.10401194,150.82,150.79,2.47451194]
[1752035699229,2.47451194,150.82,150.79,9.10521194]
[1752035700230,6.6287,150.84,150.8,6.6302]
[1752035700431,2.47451194,150.83,150.8,2.47451194]
[1752035702230,2.47451194,150.83,150.8,9.10471194]
[1752035702835,9.10331194,150.84,150.8,9.10471194]
[1752035707536,6.629,150.83,150.8,9.10471194]
[1752035711637,6.629,150.83,150.81,2.47451194]
[1752035713437,6.629,150.83,150.8,6.6302]
[1752035713635,6.629,150.83,150.81,2.47451194]
[1752035714138,6.629,150.83,150.8,6.6302]
[1752035714342,6.629,150.83,150.8,2.47451194]
[1752035714841,6.629,150.83,150.8,9.10481194]
[1752035716542,6.629,150.83,150.8,6.6303]
[1752035716743,6.629,150.83,150.8,9.10481194]
[1752035716942,9.10331194,150.84,150.8,9.10481194]
[1752035719347,6.6288,150.84,150.8,9.10481194]
[1752035719643,9.10331194,150.84,150.8,9.10481194]
[1752035723037,9.10331194,150.84,150.8,6.6303]
[1752035723240,2.47451194,150.84,150.8,9.10481194]
[1752035723647,9.10341194,150.84,150.8,9.10481194]
[1752035724042,6.6289,150.84,150.81,6.6297]
[1752035730250,9.10355706,150.84,150.81,6.6297]
[1752035730751,6.629,150.83,150.8,9.10475706]
[1752035730949,2.47465706,150.84,150.8,2.47465706]
[1752035731256,6.6292,150.83,150.8,9.10465706]
[1752035731551,2.47465706,150.84,150.8,9.10465706]
[1752035731752,6.63,150.81,150.78,6.6309]
[1752035731952,2.47465706,150.82,150.78,2.47465706]
[1752035732148,2.47465706,150.8,150.76,18.54892558]
[1752035732349,4.416,150.86,150.75,18.54892558]
[1752035732546,2.47465706,150.78,150.75,2.47465706]
[1752035732746,2.47465706,150.77,150.73,21.02358264]
[1752035732952,2.47465706,150.77,150.73,27.65678264]
[1752035733255,9.10585706,150.78,150.75,2.47465706]
[1752035733749,2.47465706,150.8,150.76,2.47465706]
[1752035733949,11.72087467,150.83,150.79,2.47465706]
[1752035734149,8.06731777,150.82,150.79,2.47465706]
[1752035734353,8.06731777,150.81,150.79,2.47465706]
[1752035734653,2.47465706,150.83,150.8,2.47465706]
[1752035734953,9.10385706,150.83,150.8,2.47465706]
[1752035735454,9.10385706,150.83,150.79,9.10505706]
[1752035738659,9.10385706,150.83,150.79,6.6304]
[1752035738854,9.10385706,150.83,150.79,9.10505706]
[1752035741762,6.6292,150.83,150.79,9.10505706]
[1752035741958,9.10385706,150.83,150.79,9.10505706]
[1752035744061,6.6295,150.82,150.79,9.10505706]
[1752035747062,6.6295,150.82,150.79,2.47465706]
[1752035747368,6.6299,150.81,150.78,6.631]
[1752035747567,2.47465706,150.82,150.78,9.10565706]
[1752035748567,9.10425706,150.82,150.78,9.10565706]
[1752035749567,6.6296,150.82,150.78,9.10565706]
[1752035749870,9.10425706,150.82,150.78,9.10565706]
[1752035750162,9.10425706,150.82,150.79,9.10535706]
[1752035751666,6.6296,150.82,150.79,9.10535706]
[1752035753364,6.6296,150.82,150.79,6.6307]
[1752035753567,6.6296,150.82,150.79,9.10535706]
[1752035756268,6.63,150.81,150.78,6.6309]
[1752035756468,6.63,150.81,150.78,9.10555706]
[1752035763670,6.63,150.81,150.79,6.6307]
[1752035764672,6.6293,150.83,150.8,6.6303]
[1752035764877,9.10395706,150.83,150.8,6.6303]
[1752035768577,2.47465706,150.82,150.8,6.6303]
[1752035768879,9.10405706,150.82,150.79,9.10515706]
[1752035769079,2.47465706,150.8,150.74,18.54892558]
[1752035769278,13.66221761,150.86,150.75,2.47465706]
[1752035769279,2.47465706,150.79,150.75,2.47465706]
[1752035769481,2.47465706,150.79,150.77,6.6316]
[1752035769877,6.6305,150.8,150.77,6.6316]
[1752035769878,9.10515706,150.8,150.77,6.6316]
[1752035772885,9.10515706,150.8,150.76,9.10645706]
[1752035773081,2.47465706,150.77,150.71,18.54892558]
[1752035773284,2.47465706,150.75,150.72,2.47465706]
[1752035773985,2.47465706,150.76,150.73,6.6331]
[1752035775787,2.47465706,150.76,150.74,6.6328]
[1752035776286,9.10655706,150.77,150.74,6.6328]
[1752035776884,2.47465706,150.77,150.74,6.6328]
[1752035777790,4.6511,150.81,150.75,6.6324]
[1752035777983,2.47465706,150.77,150.75,6.6324]
[1752035779291,6.6314,150.78,150.75,6.6324]
[1752035779489,9.10545706,150.79,150.76,6.6319]
[1752035780590,9.10545706,150.79,150.77,6.6316]
[1752035780790,9.10545706,150.79,150.75,2.47465706]
[1752035781392,9.10545706,150.79,150.76,6.6318]
[1752035782788,2.47465706,150.81,150.78,6.6311]
[1752035782992,2.47465706,150.84,150.8,2.47465706]
[1752035783291,9.10415706,150.82,150.79,9.10535706]
[1752035783492,9.10415706,150.82,150.79,2.47465706]
[1752035783493,2.47465706,150.82,150.79,2.47465706]
[1752035783689,2.47465706,150.82,150.78,2.47465706]
[1752035783886,9.10425706,150.82,150.79,6.6307]
[1752035784693,6.6291,150.83,150.8,6.6303]
[1752035789494,6.6291,150.83,150.79,6.6306]
[1752035791297,6.6294,150.82,150.79,6.6306]
[1752035791999,6.6294,150.82,150.78,6.631]
[1752035792196,6.6299,150.81,150.78,6.631]
[1752035792392,6.6299,150.81,150.75,4.6214]
[1752035792599,3.86716268,150.82,150.75,6.15236268]
[1752035793599,6.6303,150.8,150.77,6.6313]
[1752035794606,6.6307,150.79,150.77,6.6313]
[1752035794804,3.86716268,150.82,150.77,6.6313]
[1752035795500,6.6304,150.8,150.77,6.6313]
[1752035803514,6.6302,150.81,150.78,6.631]
[1752035804814,6.6302,150.81,150.79,6.6307]
[1752035806315,10.49666268,150.82,150.79,6.6307]
[1752035806814,2.4755113,150.81,150.79,6.6307]
[1752035808419,2.4755113,150.8,150.79,6.6307]
[1752035810320,2.4755113,150.8,150.78,6.631]
[1752035810622,6.6296,150.82,150.77,2.4755113]
[1752035810823,2.4755113,150.8,150.77,2.4755113]
[1752035811026,2.4755113,150.8,150.78,6.6308]
[1752035814026,2.4755113,150.8,150.79,6.6307]
[1752035814526,2.4755113,150.8,150.78,6.6309]
[1752035817132,2.4755113,150.8,150.79,6.6307]
[1752035817631,6.6296,150.82,150.79,6.6307]
[1752035818031,2.4755113,150.8,150.79,6.6307]
[1752035821728,9.1059113,150.8,150.76,2.4755113]
[1752035822530,9.1059113,150.8,150.77,6.6313]
[1752035822930,9.1059113,150.8,150.76,2.4755113]
[1752035823431,9.1059113,150.8,150.77,6.6315]
[1752035823826,6.6296,150.82,150.77,2.4755113]
[1752035824130,2.4755113,150.81,150.79,6.6305]
[1752035828632,2.4755113,150.81,150.8,6.6303]
[1752035828935,2.4755113,150.82,150.8,6.6303]
[1752035829232,2.4755113,150.82,150.81,6.6298]
[1752035829424,2.4755113,150.83,150.81,6.6298]
[1752035829830,6.6286,150.84,150.81,6.6298]
[1752035830028,2.4755113,150.83,150.81,6.6298]
[1752035830632,9.1041113,150.84,150.81,6.6298]
[1752035831531,0.04189675,150.84,150.81,2.4755113]
[1752035831934,2.51740805,150.84,150.8,2.4755113]
[1752035832234,2.51740805,150.84,150.81,0.04747962]
[1752035832933,2.51740805,150.84,150.82,6.6294]
[1752035833130,2.51740805,150.84,150.81,0.04747962]
[1752035833538,0.04189675,150.84,150.82,6.6292]
[1752035833837,2.51740805,150.84,150.82,6.6292]
[1752035834037,2.4755113,150.83,150.82,6.6292]
[1752035834341,0.04189675,150.84,150.82,6.6292]
[1752035834545,2.4755113,150.83,150.82,6.6292]
[1752035834837,2.4755113,150.83,150.81,0.04747962]
[1752035834838,2.4755113,150.83,150.81,6.67717962]
[1752035836741,2.4755113,150.83,150.82,6.6294]
[1752035840744,0.04189675,150.84,150.82,6.6294]
[1752035840945,2.4755113,150.83,150.82,6.6294]
[1752035843145,2.51740805,150.84,150.82,6.6294]
[1752035844540,2.4755113,150.83,150.82,6.6294]
[1752035845245,2.4755113,150.83,150.81,0.04747962]
[1752035845444,2.4755113,150.82,150.81,0.04747962]
[1752035846544,2.4755113,150.82,150.81,6.67727962]
[1752035848446,2.4755113,150.83,150.81,6.67727962]
[1752035851351,0.04189675,150.84,150.82,6.6292]
[1752035851548,2.4755113,150.83,150.82,6.6292]
[1752035851948,2.4755113,150.83,150.81,6.67707962]
[1752035852849,6.67049675,150.84,150.82,6.6293]
[1752035853052,2.4755113,150.83,150.81,0.04747962]
[1752035853442,2.4755113,150.83,150.81,6.67707962]
[1752035855352,2.51740805,150.84,150.82,6.6294]
[1752035856151,0.04189675,150.84,150.82,6.6294]
[1752035856352,2.51740805,150.84,150.82,6.6294]
[1752035857053,2.51740805,150.84,150.83,6.629]
[1752035859455,0.04189675,150.84,150.83,6.629]
[1752035859662,2.51740805,150.84,150.83,6.629]
[1752035860161,0.04189675,150.84,150.83,6.629]
[1752035872066,6.67039675,150.84,150.82,6.6294]
[1752035872264,2.51740805,150.84,150.82,6.6294]
[1752035872466,2.4755113,150.83,150.81,0.04747962]
[1752035872765,2.4755113,150.83,150.81,6.67707962]
[1752035874764,0.04189675,150.84,150.82,6.6293]
[1752035874957,2.51740805,150.84,150.82,6.6293]
[1752035875867,9.14600805,150.84,150.81,6.67717962]
[1752035876662,2.4755113,150.83,150.81,6.67717962]
[1752035877269,6.67049675,150.84,150.81,6.67717962]
[1752035877464,2.4755113,150.83,150.81,6.67717962]
[1752035878358,0.04189675,150.84,150.81,0.04747962]
[1752035878564,0.04189675,150.84,150.82,2.4755113]
[1752035878768,0.04189675,150.84,150.83,6.629]
[1752035893180,0.04189675,150.84,150.83,9.1045113]
[1752035893578,0.04189675,150.84,150.83,6.629]
[1752035894978,0.04189675,150.84,150.83,9.1045113]
[1752035895380,0.04189675,150.84,150.83,6.629]
[1752035895577,0.04189675,150.84,150.83,9.1045113]
[1752035896777,9.675e-05,150.84,150.83,9.1045113]
[1752035896976,4.4913,150.96,150.83,9.0955113]
[1752035897186,2.4755113,150.93,150.89,2.4755113]
[1752035897480,9.1004113,150.93,150.89,9.1015113]
[1752035897779,9.1004113,150.93,150.89,2.4755113]
[1752035897969,9.1004113,150.93,150.9,2.4755113]
[1752035898171,4.4913,150.96,150.9,2.4755113]
[1752035898172,6.6243,150.94,150.9,2.4755113]
[1752035898383,9.0998113,150.94,150.91,2.4755113]
[1752035898979,6.6243,150.94,150.9,9.1012113]
[1752035899182,2.4755113,150.93,150.9,2.4755113]
[1752035899382,2.4755113,150.93,150.91,6.6254]
[1752035899785,6.6243,150.94,150.91,6.6254]
[1752035899984,2.4755113,150.93,150.91,6.6254]
[1752035901784,6.6243,150.94,150.91,6.6254]
[1752035902084,9.0998113,150.94,150.91,6.6254]
[1752035902888,6.6243,150.94,150.91,6.6254]
[1752035903085,9.0998113,150.94,150.91,6.6254]
[1752035904886,9.0998113,150.94,150.91,9.1009113]
[1752035905688,6.6243,150.94,150.91,9.1009113]
[1752035905886,9.0998113,150.94,150.91,9.1009113]
[1752035906086,6.6243,150.94,150.91,9.1009113]
[1752035906486,9.0998113,150.94,150.91,9.1009113]
[1752035906789,9.0998113,150.94,150.91,6.6254]
[1752035909989,4.4913,150.96,150.9,6.6255]
[1752035909990,9.1002113,150.93,150.9,6.6255]
[1752035910887,6.6247,150.93,150.9,6.6255]
[1752035911288,9.1002113,150.93,150.9,6.6255]
[1752035911789,9.1002113,150.93,150.9,9.1010113]
[1752035912690,6.6247,150.93,150.9,9.1010113]
[1752035912990,9.1002113,150.93,150.9,9.1010113]
[1752035913788,2.4755113,150.93,150.91,6.6254]
[1752035914291,6.6243,150.94,150.91,6.6254]
[1752035914292,9.0998113,150.94,150.91,6.6254]
[1752035915992,4.4913,150.96,150.91,2.4755113]
[1752035916194,4.4913,150.96,150.92,2.4755113]
[1752035916195,6.9668113,150.96,150.92,2.4755113]
[1752035916491,9.23038771,151.03,150.95,2.4755113]
[1752035916695,2.4755113,151.0,150.96,2.4755113]
[1752035917096,2.4755113,151.0,150.96,2.51788126]
[1752035917286,6.6222,150.99,150.96,9.14088126]
[1752035917494,6.6222,150.99,150.96,6.66536996]
[1752035917893,9.0979113,150.98,150.96,0.04236996]
[1752035918291,6.6224,150.98,150.96,0.04236996]
[1752035918797,6.6224,150.98,150.96,6.66556996]
[1752035919790,9.14849266,150.99,150.96,6.66556996]
[1752035920296,6.67298136,150.99,150.96,6.66556996]
[1752035920692,9.14849266,150.99,150.96,6.66556996]
[1752035921400,6.67298136,150.99,150.96,9.14108126]
[1752035921697,9.14849266,150.99,150.96,9.14108126]
[1752035921997,0.05088136,150.99,150.96,0.04236996]
[1752035922193,2.4755113,150.98,150.96,0.04236996]
[1752035922393,0.05088136,150.99,150.96,0.04236996]
[1752035922596,9.0982113,150.98,150.96,0.04236996]
[1752035922895,0.05088136,150.99,150.96,0.04236996]
[1752035923095,9.0979113,150.98,150.96,0.04236996]
[1752035924395,6.6228,150.97,150.96,0.04236996]
[1752035924695,2.4755113,150.97,150.96,0.04236996]
[1752035925099,2.4755113,150.96,150.93,2.4755113]
[1752035925697,2.4755113,150.96,150.93,9.0998113]
[1752035926094,2.4755113,150.96,150.94,6.6239]
[1752035927797,9.0986113,150.97,150.94,6.6239]
[1752035927998,6.6231,150.97,150.94,6.6239]
[1752035928199,9.0986113,150.97,150.94,9.0994113]
[1752035930498,9.0986113,150.97,150.94,6.6239]
[1752035931499,9.0986113,150.97,150.93,9.1000113]
[1752035931902,9.0991113,150.96,150.9,2.1737]
[1752035932200,9.0991113,150.96,150.93,2.4755113]
[1752035933402,6.623,150.97,150.93,9.0998113]
[1752035933703,2.4755113,150.96,150.93,6.6243]
[1752035934602,9.0989113,150.96,150.93,9.0998113]
[1752035935600,6.6234,150.96,150.93,9.0998113]
[1752035935804,4.5658,151.02,150.94,2.4755113]
[1752035936104,2.4755113,150.99,150.95,2.4755113]
[1752035936300,9.0978113,150.99,150.95,6.6234]
[1752035936502,2.4755113,150.98,150.95,2.4755113]
[1752035937007,2.4755113,150.98,150.95,9.0990113]
[1752035938406,9.0980113,150.98,150.95,9.0990113]
[1752035939509,2.52414936,150.99,150.96,9.0985113]
[1752035939707,0.04863806,150.99,150.97,2.4755113]
[1752035939902,0.04863806,150.99,150.98,2.4755113]
[1752035947225,2.4755113,151.03,150.98,2.4755113]
[1752035947424,2.4755113,151.03,150.97,0.04234989]
[1752035947625,6.621,151.02,150.99,2.4755113]
[1752035948124,6.621,151.02,150.99,9.0974113]
[1752035949724,6.6211,151.01,150.99,2.4755113]
[1752035951321,6.6207,151.02,151.0,2.4755113]
[1752035952126,6.6203,151.03,151.0,9.0969113]
[1752035952322,6.6203,151.03,151.01,2.4755113]
[1752035952718,6.6203,151.03,151.0,9.14731744]
[1752035952918,6.6206,151.02,151.0,2.52591744]
[1752035955229,3.18879162,151.07,150.97,2.4755113]
[1752035955526,2.4755113,151.01,150.97,2.4755113]
[1752035955728,2.4755113,151.0,150.96,2.4755113]
[1752035956328,6.622,150.99,150.96,9.0985113]
[1752035956527,2.4755113,151.01,150.97,2.4755113]
[1752035956931,6.6217,151.0,150.97,9.0980113]
[1752035957132,2.4755113,151.02,150.98,2.4755113]
[1752035957525,2.4755113,151.01,150.9,34.02278605]
[1752035957833,2.4755113,151.0,150.97,2.4755113]
[1752035958033,9.0973113,151.0,150.97,9.0981113]
[1752035958534,6.6218,151.0,150.97,9.0981113]
[1752035958735,6.6212,151.01,150.98,9.0979113]
[1752035958937,9.0967113,151.01,150.98,9.0979113]
[1752035959532,9.0967113,151.01,150.98,6.6224]
[1752035959934,9.0967113,151.01,150.97,9.0981113]
[1752035960432,6.6218,151.0,150.97,9.0981113]
[1752035961940,9.0968113,151.01,150.97,9.0981113]
[1752035962341,6.6213,151.01,150.97,9.0981113]
[1752035962540,9.0968113,151.01,150.97,9.0981113]
[1752035962740,6.6213,151.01,150.98,2.4755113]
[1752035962940,6.6213,151.01,150.98,9.0978113]
[1752035967143,6.6208,151.02,150.99,2.4755113]
[1752035968241,6.6211,151.01,150.99,2.4755113]
[1752035968645,6.6211,151.01,150.92,18.59738605]
[1752035968841,6.6211,151.01,150.99,2.4755113]
[1752035970146,6.6211,151.01,150.97,6.6224]
[1752035970349,6.6211,151.01,150.98,2.4755113]
[1752035970748,6.6211,151.01,150.98,9.0978113]
[1752035971247,6.6211,151.01,150.99,2.4755113]
[1752035971850,6.6208,151.02,150.99,9.0974113]